fUST/lending_fUST_20240506
["ID","MTS","AMOUNT","RATE_DAILY","PERIOD"]
[326465435,1714942242656,-500.0,0.00020118,2]
[326465436,1714942242668,-500.0,0.00020118,2]
[326465437,1714942242683,-606.97,0.00020118,2]
[326465438,1714942242694,-500.0,0.00020118,2]
[326465439,1714942242703,-596.66,0.00020118,2]
[326465440,1714942242712,-500.0,0.00020118,2]
[326465441,1714942242723,-855.68,0.00020118,2]
[326465442,1714942242735,-500.0,0.00020118,2]
[326465443,1714942242744,-500.0,0.00020118,2]
[326465444,1714942242753,-2163.5,0.00020118,2]
[326465445,1714942242763,-500.0,0.00020118,2]
[326465446,1714942242772,-577.24,0.00020118,2]
[326465447,1714942242782,-500.0,0.00020118,2]
[326465448,1714942242792,-7092.31,0.00020118,2]
[326465449,1714942242801,-4112.62,0.00020118,2]
[326465450,1714942242812,-1114.95,0.00020118,2]
[326465451,1714942242822,-500.0,0.00020118,2]
[326465452,1714942242832,-1117.36,0.00020118,2]
[326465453,1714942242842,-8647.65,0.00020118,2]
[326465454,1714942242852,-573.26,0.00020118,2]
[326465455,1714942242862,-6069.23,0.00020118,2]
[326465456,1714942242872,-1346.87,0.00020118,2]
[326465457,1714942242882,-500.0,0.00020118,2]
[326465458,1714942242892,-639.02,0.00020118,2]
[326465459,1714942242902,-500.0,0.00020118,2]
[326465460,1714942242912,-2837.78,0.00020118,2]
[326465461,1714942242921,-745.52,0.00020118,2]
[326465462,1714942242930,-500.0,0.00020118,2]
[326465463,1714942242941,-500.0,0.00020118,2]
[326465464,1714942242953,-500.0,0.00020118,2]
[326465465,1714942242962,-500.0,0.00020118,2]
[326465466,1714942242971,-500.0,0.00020118,2]
[326465467,1714942242981,-500.0,0.00020118,2]
[326465468,1714942242990,-665.64,0.00020118,2]
[326465469,1714942243000,-3136.73,0.00020118,2]
[326465470,1714942243009,-303.02822402,0.00020118,2]
[326465471,1714942243019,-500.0,0.00020118,2]
[326465473,1714942243030,-1841.39,0.00020118,2]
[326465475,1714942243040,-759.31,0.00020118,2]
[326465477,1714942243049,-799.9,0.00020118,2]
[326465478,1714942243058,-791.57,0.00020118,2]
[326465479,1714942243068,-32604.58935182,0.00020118,2]
[326465487,1714942243564,-17122.71517345,0.00020118,2]
[326465489,1714942243776,-1092.60138323,0.00020118,2]
[326465530,1714942246591,-529.13,0.00019843,2]
[326465531,1714942246600,-500.0,0.00019846,2]
[326465532,1714942246609,-529.13,0.00020116,2]
[326465533,1714942246619,-1712.54896767,0.00020117,2]
[326465534,1714942246628,-369.99993246,0.00020117,2]
[326465535,1714942246637,-10309.8040915,0.00020118,2]
[326465536,1714942246647,-7692.46,0.00020118,2]
[326465537,1714942246656,-602.6,0.00020118,2]
[326465538,1714942246665,-500.0,0.00020118,2]
[326465539,1714942246674,-507.93,0.00020118,2]
[326465540,1714942246683,-9008.71,0.00020118,2]
[326465541,1714942246693,-500.0,0.00020118,2]
[326465542,1714942246702,-559.26,0.00020118,2]
[326465543,1714942246711,-500.0,0.00020118,2]
[326465544,1714942246721,-1449.56,0.00020118,2]
[326465545,1714942246731,-500.0,0.00020118,2]
[326465546,1714942246742,-500.0,0.00020118,2]
[326465547,1714942246751,-500.0,0.00020118,2]
[326465548,1714942246760,-500.0,0.00020118,2]
[326465549,1714942246770,-1604.97,0.00020118,2]
[326465550,1714942246779,-500.0,0.00020118,2]
[326465551,1714942246789,-345.66124483,0.00020118,2]
[326465552,1714942246798,-755.39,0.00020118,2]
[326465553,1714942246916,-500.0,0.00020118,2]
[326465554,1714942246926,-3393.38,0.00020118,2]
[326465555,1714942246935,-500.0,0.00020118,2]
[326465556,1714942246952,-2564.73,0.00020118,2]
[326465557,1714942246961,-634.09,0.00020118,2]
[326465558,1714942246971,-500.0,0.00020118,2]
[326465559,1714942246980,-500.0,0.00020118,2]
[326465560,1714942246991,-500.0,0.00020118,2]
[326465561,1714942247000,-535.71,0.00020118,2]
[326465562,1714942247009,-16625.15,0.00020118,2]
[326465563,1714942247020,-500.0,0.00020118,2]
[326465564,1714942247031,-539.55271003,0.00020118,2]
[326465565,1714942247040,-500.0,0.00020118,2]
[326465566,1714942247049,-500.0,0.00020118,2]
[326465567,1714942247059,-523.06921073,0.00020118,2]
[326465568,1714942247068,-500.0,0.00020118,2]
[326465569,1714942247078,-2297.01,0.00020118,2]
[326465570,1714942247087,-949.16,0.00020118,2]
[326465571,1714942247096,-7759.91,0.00020118,2]
[326465572,1714942247106,-500.0,0.00020118,2]
[326465573,1714942247115,-500.0,0.0002012,2]
[326465574,1714942247125,-500.0,0.0002012,2]
[326465575,1714942247134,-500.0,0.0002012,2]
[326465576,1714942247143,-1337.73,0.0002012,2]
[326465577,1714942247153,-500.0,0.0002012,2]
[326465578,1714942247162,-502.91754548,0.0002012,2]
[326465579,1714942247172,-500.0,0.0002012,2]
[326465580,1714942247182,-500.0,0.0002012,2]
[326465581,1714942247191,-500.0,0.0002012,2]
[326465582,1714942247201,-577.18205621,0.0002012,2]
[326465583,1714942247211,-523.93,0.0002012,2]
[326465584,1714942247220,-500.0,0.0002012,2]
[326465585,1714942247230,-500.0,0.0002012,2]
[326465586,1714942247239,-500.0,0.0002012,2]
[326465587,1714942247248,-500.0,0.0002012,2]
[326465588,1714942247258,-728.9,0.0002012,2]
[326465589,1714942247267,-500.0,0.0002012,2]
[326465590,1714942247276,-500.0,0.0002012,2]
[326465591,1714942247286,-667.56,0.0002012,2]
[326465592,1714942247295,-500.0,0.0002012,2]
[326465593,1714942247304,-671.9,0.0002012,2]
[326465594,1714942247313,-500.0,0.0002012,2]
[326465595,1714942247324,-500.0,0.0002012,2]
[326465596,1714942247333,-500.0,0.0002012,2]
[326465597,1714942247342,-500.0,0.0002012,2]
[326465598,1714942247351,-545.39140088,0.0002012,2]
[326465599,1714942247362,-500.0,0.0002012,2]
[326465600,1714942247372,-500.0,0.0002012,2]
[326465601,1714942247382,-151.0,0.0002012,2]
[326465602,1714942247392,-500.0,0.0002012,2]
[326465603,1714942247401,-500.0,0.0002012,2]
[326465604,1714942247410,-500.0,0.0002012,2]
[326465605,1714942247420,-500.0,0.0002012,2]
[326465606,1714942247429,-500.0,0.0002012,2]
[326465607,1714942247438,-502.95078164,0.0002012,2]
[326465608,1714942247448,-500.0,0.0002012,2]
[326465609,1714942247457,-500.0,0.0002012,2]
[326465610,1714942247466,-500.0,0.0002012,2]
[326465611,1714942247476,-500.0,0.0002012,2]
[326465612,1714942247485,-2185.4,0.0002012,2]
[326465613,1714942247495,-500.0,0.0002012,2]
[326465614,1714942247504,-500.0,0.0002012,2]
[326465615,1714942247513,-500.0,0.0002012,2]
[326465616,1714942247522,-500.0,0.0002012,2]
[326465617,1714942247531,-634.37,0.0002012,2]
[326465618,1714942247540,-741.73,0.0002012,2]
[326465619,1714942247550,-500.0,0.0002012,2]
[326465620,1714942247559,-500.0,0.0002012,2]
[326465621,1714942247568,-500.0,0.0002012,2]
[326465622,1714942247578,-500.0,0.0002012,2]
[326465623,1714942247588,-500.0,0.0002012,2]
[326465624,1714942247597,-949.15,0.0002012,2]
[326465625,1714942247606,-510.88100298,0.0002012,2]
[326465626,1714942247616,-500.0,0.0002012,2]
[326465627,1714942247625,-2290.43,0.0002012,2]
[326465628,1714942247635,-500.0,0.0002012,2]
[326465629,1714942247644,-500.0,0.0002012,2]
[326465630,1714942247654,-861.24,0.0002012,2]
[326465631,1714942247664,-500.0,0.0002012,2]
[326465632,1714942247673,-630.34,0.0002012,2]
[326465633,1714942247682,-500.0,0.0002012,2]
[326465634,1714942247692,-500.0,0.0002012,2]
[326465635,1714942247701,-571.73,0.0002012,2]
[326465636,1714942247710,-500.0,0.0002012,2]
[326465637,1714942247720,-500.0,0.0002012,2]
[326465638,1714942247730,-500.0,0.0002012,2]
[326465639,1714942247739,-747.02,0.0002012,2]
[326465640,1714942247749,-500.0,0.0002012,2]
[326465641,1714942247759,-929.48,0.0002012,2]
[326465642,1714942247768,-511.23,0.0002012,2]
[326465643,1714942247778,-502.73119952,0.0002012,2]
[326465644,1714942247787,-500.0,0.0002012,2]
[326465645,1714942247796,-500.0,0.0002012,2]
[326465646,1714942247805,-205.39563392,0.0002012,2]
[326465648,1714942495743,164.278321,0.0001589,2]
[326465649,1714942877666,1712.54896767,9.999e-05,2]
[326465650,1714943076372,460.901999,0.0001589,2]
[326465651,1714943149113,-461.96269295,0.00018722,2]
[326465672,1714943236107,-530.56440298,0.00018727,2]
[326465673,1714943243123,-1368.60785188,0.00018727,2]
[326465674,1714943347110,-194.46840938,0.00018627,3]
[326465675,1714943347128,-600.72333643,0.000187,2]
[326465676,1714943347146,-1712.54896767,0.00018724,2]
[326465677,1714943347164,-7880.31194024,0.00018725,2]
[326465678,1714943347183,-154.59804508,0.00018727,2]
[326465679,1714943347202,-305.0077446,0.00018729,2]
[326465680,1714943347220,-160.962872,0.00019178,2]
[326465681,1714943347238,-296.202,0.00019214,2]
[326465682,1714943347258,-156.62173039,0.000196,2]
[326465683,1714943352134,-9304.64279928,0.00019643,2]
[326465684,1714943352154,-204.71092819,0.00019643,2]
[326465685,1714943356110,153.0,0.00019378,2]
[326465686,1714943358578,154.59804508,0.00018727,2]
[326465687,1714943374121,198.68537083,0.00018727,2]
[326465688,1714943412116,154.59804508,0.00018727,2]
[326465689,1714943420327,60.51087754,0.00018741,2]
[326465690,1714943420351,190.30257556,0.00018741,2]
[326465691,1714943428633,290.06669241,0.00019642,2]
[326465692,1714943428670,478.68570944,0.00018741,2]
[326465693,1714943428691,1.32292606,0.00018741,2]
[326465743,1714943431679,-643.41647752,0.00019731,2]
[326465790,1714943432122,300.71169271,0.00018727,2]
[326465833,1714943433655,290.06669241,0.00019681,2]
[326465865,1714943437735,-1122.88370906,0.00019731,2]
[326465876,1714943437966,-6114.01175366,0.00019731,2]
[326465877,1714943437975,-1712.54896767,0.00019731,2]
[326465878,1714943437984,-463.09,0.00019732,3]
[326465879,1714943437993,-231.55,0.00019732,3]
[326465880,1714943438002,-694.66,0.00019732,3]
[326465881,1714943438011,-597.44564432,0.00019741,2]
[326465882,1714943438020,-335.28483481,0.00019741,2]
[326465883,1714943438029,-264.82449088,0.00019741,2]
[326465884,1714943438038,-500.0,0.00019741,2]
[326465885,1714943438047,-161.65342667,0.00019741,2]
[326465886,1714943438056,-500.0,0.00019741,2]
[326465887,1714943438065,-500.0,0.00019741,2]
[326465888,1714943438073,-500.0,0.00019741,2]
[326465889,1714943438082,-500.0,0.00019741,2]
[326465890,1714943438091,-500.0,0.00019741,2]
[326465891,1714943438100,-500.0,0.00019741,2]
[326465892,1714943438109,-1078.50914162,0.00019741,2]
[326465893,1714943438648,290.06669241,0.0001972,2]
[326465994,1714943445820,-3.90954114,0.00019741,2]
[326465995,1714943445832,-1566.07131724,0.00019741,2]
[326465997,1714943445842,-526.72,0.00019741,2]
[326465999,1714943445851,-331.00868276,0.00019741,2]
[326466004,1714943445899,-168.99131724,0.00019741,2]
[326466006,1714943445908,-500.0,0.00019741,2]
[326466007,1714943445918,-653.66938695,0.00019741,2]
[326466014,1714943551612,33.47474603,0.00019642,2]
[326466015,1714944052745,164.27828,0.0001589,2]
[326466016,1714944052801,1712.54896767,9.999e-05,2]
[326466017,1714944356166,-908.36063955,0.00019157,2]
[326466020,1714944435349,-258.36696438,0.00019154,2]
[326466022,1714944451103,-814.90734581,0.00019153,2]
[326466026,1714944553123,-7880.31194024,0.00019149,2]
[326466027,1714944553144,-1881.44054013,0.0001915,2]
[326466028,1714944553164,-2394.8428627,0.0001915,2]
[326466029,1714944553183,-161.23817,0.00019178,2]
[326466030,1714944553203,-1712.54896767,0.00019179,2]
[326466031,1714944553222,-620.81551594,0.00019182,2]
[326466032,1714944553241,-246.0823809,0.00019638,2]
[326466033,1714944553261,-205.06363588,0.0001964,2]
[326466034,1714944553279,-5000.0,0.000197,2]
[326466035,1714944558986,268.16298395,0.00019639,2]
[326466036,1714944563987,268.16298393,0.00019676,2]
[326466037,1714944568967,268.16298393,0.00019714,2]
[326466069,1714944632205,-1881.44054013,0.00019726,2]
[326466071,1714944632214,-14.26623562,0.00019727,2]
[326466073,1714944632225,-1463.51827063,0.00019727,2]
[326466075,1714944632237,-3522.21549375,0.00019727,2]
[326466077,1714944632245,-1712.54896767,0.00019727,2]
[326466079,1714944632254,-3555.3783021,0.00019728,2]
[326466081,1714944632263,-461.67,0.00019728,3]
[326466082,1714944632272,-538.62,0.00019728,3]
[326466083,1714944632281,-269.31,0.00019728,3]
[326466084,1714944632290,-605.93620181,0.00019736,2]
[326466085,1714944632299,-342.64681446,0.00019736,2]
[326466086,1714944632308,-7880.31194024,0.00019736,2]
[326466087,1714944632317,-154.96029568,0.00019736,2]
[326466088,1714944632326,-321.0167056,0.00019737,2]
[326466089,1714944635015,109.27854186,9.999e-05,2]
[326466090,1714944635036,45.31950322,9.999e-05,2]
[326466116,1714944638349,-74.58814897,0.00019737,2]
[326466221,1714945100273,553.729946,0.0001589,2]
[326466243,1714945256012,1712.54896767,9.999e-05,2]
[326466263,1714945559104,-896.32103587,0.00018625,2]
[326466264,1714945573376,1092.51303732,9.999e-05,2]
[326466272,1714945629675,-212.72970887,0.00018624,2]
[326466273,1714945634108,-909.32745006,0.00018624,2]
[326466274,1714945639105,-562.99634318,0.00018624,2]
[326466282,1714945745969,-1308.1919353,0.00018445,2]
[326466283,1714945745981,-4759.6161294,0.00018445,2]
[326466284,1714945745992,-1308.1919353,0.00018731,2]
[326466285,1714945746120,-404.35703237,0.00018731,2]
[326466286,1714945746140,-254.2381339,0.00018863,2]
[326466287,1714945746161,-288.07893999,0.00019634,2]
[326466288,1714945746181,-364.47434589,0.00019634,2]
[326466289,1714945746201,-364.47434586,0.00019672,2]
[326466290,1714945746221,-364.47434586,0.0001971,2]
[326466291,1714945758134,-5000.0,0.00019722,2]
[326466292,1714945758155,-532.91,0.00019723,3]
[326466293,1714945758176,-647.11,0.00019723,3]
[326466294,1714945758197,-323.55,0.00019723,3]
[326466295,1714945758217,-161.78,0.00019723,3]
[326466296,1714945758239,-485.34,0.00019723,3]
[326466297,1714945761178,78.21176692,0.00019623,3]
[326466298,1714945761198,311.02918522,0.00019623,3]
[326466299,1714945772115,-1143.0,0.00019731,2]
[326466340,1714945832380,-3857.0,0.00019731,2]
[326466342,1714945832390,-551.24147659,0.00019731,2]
[326466344,1714945832399,-220.67234021,0.00019732,2]
[326466346,1714945832408,-256.04813328,0.00019732,2]
[326466348,1714945832417,-258.36696438,0.00019732,2]
[326466350,1714945832427,-500.0,0.00019732,2]
[326466352,1714945832436,-500.0,0.00019732,2]
[326466354,1714945832445,-485.21725842,0.00019732,2]
[326466356,1714945832457,-14.78274158,0.00019732,2]
[326466358,1714945832467,-500.0,0.00019732,2]
[326466360,1714945832476,-500.0,0.00019732,2]
[326466363,1714945832484,-500.0,0.00019732,2]
[326466366,1714945832494,-3.69898779,0.00019732,2]
[326466369,1714945832505,-313.66883453,0.00019732,2]
[326466372,1714945832514,-500.0,0.00019732,2]
[326466375,1714945832523,-500.0,0.00019732,2]
[326466378,1714945832531,-500.0,0.00019732,2]
[326466381,1714945832540,-500.0,0.00019732,2]
[326466387,1714945832563,-500.0,0.00019732,2]
[326466391,1714945832574,-499.99999999,0.00019732,2]
[326466394,1714945832584,-469.31894033,0.00019732,2]
[326466397,1714945832594,-324.41772548,0.00019732,2]
[326466399,1714945832605,-444.57351792,0.00019732,2]
[326466423,1714945838444,-1206.51164157,0.00019732,2]
[326466425,1714945838455,-702.27140206,0.00019732,2]
[326466426,1714945838466,-41.96047307,0.00019732,2]
[326466427,1714945838476,-500.0,0.00019732,2]
[326466428,1714945838485,-455.99427693,0.00019732,2]
[326466429,1714945838497,-44.00572307,0.00019732,2]
[326466430,1714945838506,-317.68866735,0.00019732,2]
[326466431,1714945838518,-242.20133265,0.00019732,2]
[326466432,1714945838527,-14656.43112906,0.00019732,2]
[326466535,1714945840829,-500.0,0.00019732,2]
[326466565,1714945844063,-574.06341984,0.00019732,2]
[326466574,1714945846938,-262.5,0.00019731,2]
[326466575,1714945847083,-134.9069827,0.00019731,2]
[326466576,1714945847096,-793.85475106,0.00019731,2]
[326466577,1714945911177,555.11,0.00019723,3]
[326466578,1714945915137,163.69329338,0.00019543,2]
[326466579,1714945922045,145.80351264,0.00019723,3]
[326466580,1714945922068,131.75648736,0.00019723,3]
[326466581,1714945982417,158.10655597,9.999e-05,2]
[326466583,1714946061537,437.856899,0.0001589,2]
[326466586,1714946748151,-620.0407758,0.00019135,2]
[326466587,1714946748171,-221.382144,0.00019178,2]
[326466588,1714946748192,-114.93747582,0.00019719,2]
[326466589,1714946831164,-337.79764593,0.0001963,2]
[326466590,1714946831186,-337.79764589,0.00019669,2]
[326466591,1714946831206,-5000.0,0.00019717,2]
[326466592,1714946831226,-3203.39856738,0.00019718,2]
[326466593,1714946831246,-315.50558951,0.0001972,3]
[326466594,1714946840092,-337.79764589,0.00019707,2]
[326466595,1714946840113,-100.82441049,0.0001972,3]
[326466596,1714946840133,-124.59186567,0.0001972,3]
[326466597,1714946841103,-83.57813433,0.0001972,3]
[326466598,1714946841124,-500.0,0.00019729,2]
[326466599,1714946841145,-155.95741265,0.00019729,2]
[326466600,1714946848104,-271.88381601,0.00019728,2]
[326466601,1714946945133,-624.53,0.0001972,3]
[326466602,1714946962982,204.71092819,0.00019628,2]
[326466603,1714947000296,753.58380454,0.0001963,2]
[326466604,1714947000319,150.0,0.0001963,2]
[326466605,1714947000339,291.16333551,0.0001963,2]
[326466606,1714947000359,269.9342733,0.0001963,2]
[326466638,1714947033062,-154.59804508,0.00019628,2]
[326466640,1714947033071,-402.32112006,0.0001963,2]
[326466641,1714947033083,-5094.14620552,0.0001963,2]
[326466642,1714947033092,-5000.0,0.000197,2]
[326466643,1714947033102,-208.16,0.00019719,3]
[326466644,1714947033111,-624.52,0.00019719,3]
[326466646,1714947033119,-500.0,0.00019727,2]
[326466649,1714947033129,-15654.52686287,0.00019728,5]
[326466652,1714947033138,-19105.63790301,0.00019728,2]
[326466654,1714947033149,-492.04,0.00019728,2]
[326466660,1714947033228,-2169.55512231,0.00019728,2]
[326466678,1714947038656,-310.82178463,0.00019728,2]
[326466793,1714947043989,-107.02251086,0.00019728,2]
[326466859,1714947077581,241.61505106,0.00018728,2]
[326466860,1714947077602,208.971144,0.00018728,2]
[326466861,1714947077623,28.09951434,0.00018728,2]
[326466862,1714947091093,134.36388601,0.0001589,2]
[326466863,1714947091113,29.91439399,0.0001589,2]
[326466864,1714947114230,154.59804508,0.0001589,2]
[326466865,1714947130227,62.85887201,0.0001589,2]
[326466866,1714947130254,135.82649882,0.0001589,2]
[326466867,1714947201384,315.15765538,9.999e-05,2]
[326466868,1714948048170,-250.8134531,0.00018689,2]
[326466869,1714948048191,-7.55351128,0.00019178,2]
[326466870,1714948054138,-153.43487872,0.00019178,2]
[326466871,1714948054159,-475.98745928,0.00019625,2]
[326466872,1714948054181,-185.49151112,0.00019664,2]
[326466882,1714948106154,526.043448,0.0001589,2]
[326466945,1714948151134,-919.1084713,0.00019702,2]
[326466946,1714948154099,-4080.8915287,0.00019702,2]
[326466947,1714948154119,-402.52,0.00019715,3]
[326466948,1714948154139,-201.26,0.00019715,3]
[326466949,1714948154159,-519.2601971,0.00019715,3]
[326466950,1714948157138,-84.5198029,0.00019715,3]
[326466951,1714948157158,-925.06733191,0.00019723,2]
[326466952,1714948157177,-258.36696438,0.00019723,2]
[326466953,1714948157195,-500.0,0.00019724,2]
[326466954,1714948157217,-7827.26343144,0.00019724,5]
[326466955,1714948157234,-32577.80197606,0.00019724,2]
[326466956,1714948157253,-22471.12740633,0.00019725,2]
[326466957,1714948160171,-117084.53217644,0.00019725,2]
[326466960,1714948232046,-1166.71693543,0.00019724,2]
[326466961,1714948232056,-500.0,0.00019724,2]
[326466962,1714948232065,-2538.29,0.00019724,2]
[326466963,1714948232075,-504.78,0.00019724,2]
[326466964,1714948232084,-500.0,0.00019724,2]
[326466966,1714948232093,-3913.63171572,0.00019724,5]
[326466967,1714948232104,-30831.65838877,0.00019725,2]
[326466969,1714948232116,-310.0,0.00019725,2]
[326466971,1714948232127,-5100.96008358,0.00019725,2]
[326467122,1714948243249,-393.30258798,0.00019625,2]
[326467123,1714948243258,-502.74411352,0.00019724,2]
[326467124,1714948243268,-502.71845308,0.00019724,2]
[326467125,1714948243277,-504.02957092,0.00019724,2]
[326467126,1714948243286,-12697.39,0.00019724,2]
[326467127,1714948243296,-500.0,0.00019724,2]
[326467128,1714948243305,-2909.42475891,0.00019724,2]
[326467136,1714949135059,415.964054,0.0001589,2]
[326467137,1714949152169,-210.78871843,0.00019087,2]
[326467138,1714949157098,-409.21334688,0.00019087,2]
[326467139,1714949157120,-234.184193,0.00019178,2]
[326467140,1714949157142,-1000.0,0.0001948,2]
[326467141,1714949157164,-1000.0,0.00019526,2]
[326467142,1714949157185,-1000.0,0.00019586,2]
[326467143,1714949157209,-1000.0,0.0001961,2]
[326467144,1714949157229,-470.80978556,0.00019622,2]
[326467145,1714949157249,-327.99611406,0.00019622,2]
[326467146,1714949157268,-2000.0,0.00019623,2]
[326467147,1714949157287,-10775.62245246,0.00019625,2]
[326467148,1714949157306,-1000.0,0.00019636,2]
[326467149,1714949157326,-470.80978553,0.00019661,2]
[326467150,1714949157344,-153.0,0.000197,2]
[326467151,1714949157363,-306.7267302,0.000197,2]
[326467152,1714949157381,-153.0,0.000197,2]
[326467153,1714949157402,-5000.0,0.000197,2]
[326467154,1714949157421,-470.80978553,0.000197,2]
[326467155,1714949157440,-243.75,0.00019712,3]
[326467156,1714949157460,-385.63372527,0.00019721,2]
[326467157,1714949157482,-258.36696438,0.00019721,2]
[326467158,1714949157502,-500.0,0.00019721,2]
[326467159,1714949157524,-500.0,0.00019721,2]
[326467160,1714949157544,-500.0,0.00019721,2]
[326467161,1714949157564,-500.0,0.00019721,2]
[326467162,1714949157584,-500.0,0.00019721,2]
[326467163,1714949157603,-507.16905871,0.00019721,2]
[326467164,1714949157623,-14834.18860857,0.00019721,2]
[326467165,1714949157644,-5870.44757357,0.00019721,5]
[326467166,1714949157664,-55563.53637317,0.00019722,2]
[326467167,1714949158347,1700.79338396,9.999e-05,2]
[326467168,1714949229097,-217.53287206,0.00019712,3]
[326467169,1714949231171,-91.55712794,0.00019712,3]
[326467170,1714949231192,-78.89007761,0.0001972,2]
[326467171,1714949233098,-4921.10992239,0.0001972,2]
[326467172,1714949233118,-1000.0,0.00019721,2]
[326467173,1714949233140,-501.82214772,0.00019721,2]
[326467174,1714949233160,-500.0,0.00019721,2]
[326467175,1714949233180,-500.0,0.00019721,2]
[326467176,1714949233199,-609.56115887,0.00019721,2]
[326467177,1714949233220,-500.0,0.00019721,2]
[326467178,1714949233239,-500.0,0.00019721,2]
[326467179,1714949233257,-500.0,0.00019721,2]
[326467180,1714949233276,-62.72430165,0.00019721,2]
[326467181,1714949236170,-212.72970887,0.00019721,2]
[326467182,1714949243097,-154.55,0.00019712,3]
[326467183,1714949243115,-280.05199864,0.00019721,2]
[326467184,1714949243137,-335.86353298,0.00019721,2]
[326467185,1714949370107,-311.02918522,0.0001962,3]
[326467186,1714949370135,-465.9686673,0.00019622,2]
[326467187,1714949370161,-271.16785974,0.00019712,3]
[326467188,1714949370206,-192.49214026,0.00019712,3]
[326467189,1714949370446,-404.35703237,0.0001972,2]
[326467190,1714949370467,-164.13646702,0.00019721,2]
[326467191,1714949370486,-500.0,0.00019721,2]
[326467192,1714949370506,-500.0,0.00019721,2]
[326467193,1714949370525,-500.0,0.00019721,2]
[326467194,1714949370544,-500.0,0.00019721,2]
[326467195,1714949370565,-500.0,0.00019721,2]
[326467196,1714949370584,-500.0,0.00019721,2]
[326467197,1714949370608,-598.69504784,0.00019721,2]
[326467198,1714949370629,-500.0,0.00019721,2]
[326467199,1714949370648,-500.0,0.00019721,2]
[326467200,1714949370668,-265.49792789,0.00019721,2]
[326467201,1714949370689,-500.0,0.00019721,2]
[326467202,1714949370708,-500.0,0.00019721,2]
[326467203,1714949370728,-500.0,0.00019721,2]
[326467204,1714949370746,-500.0,0.00019721,2]
[326467205,1714949370769,-500.0,0.00019721,2]
[326467206,1714949370788,-729.42,0.00019721,2]
[326467207,1714949370808,-84896.57699314,0.00019722,2]
[326467228,1714949432057,-465.96866726,0.00019661,2]
[326467231,1714949432067,-465.96866726,0.00019701,2]
[326467233,1714949432076,-154.54,0.00019712,3]
[326467235,1714949432085,-595.41,0.00019712,3]
[326467237,1714949432095,-500.0,0.00019721,2]
[326467239,1714949432106,-500.0,0.00019721,2]
[326467241,1714949432115,-500.0,0.00019721,2]
[326467242,1714949432125,-500.0,0.00019721,2]
[326467245,1714949432135,-500.0,0.00019721,2]
[326467247,1714949432144,-500.0,0.00019721,2]
[326467249,1714949432153,-2935.22378679,0.00019721,5]
[326467251,1714949432162,-36966.73407517,0.00019722,2]
[326467339,1714949438212,-412.80292201,0.00019721,2]
[326467354,1714949440541,-87.19707799,0.00019721,2]
[326467355,1714949440550,-2432.53,0.00019721,2]
[326467356,1714949440559,-500.0,0.00019721,2]
[326467357,1714949440568,-7417.09430429,0.00019721,2]
[326467358,1714949440577,-25935.95960663,0.00019722,2]
[326467391,1714949443678,-500.0,0.00019721,2]
[326467392,1714949443688,-11270.5849441,0.00019722,2]
[326467393,1714949443958,-12962.2974735,0.00019722,2]
[326467394,1714949443981,-21677.40205424,0.00019722,2]
[326467430,1714949627375,165.332385,0.0001589,2]
[326467431,1714950140488,164.27828,0.0001589,2]
[326467432,1714950214873,3356.64083987,9.999e-05,2]
[326467433,1714950214900,15799.03277842,9.999e-05,2]
[326467434,1714950219395,1396.26445837,9.999e-05,2]
[326467436,1714950333178,-239.2319674,0.00018838,2]
[326467437,1714950426110,-15.0061665,0.00018838,2]
[326467438,1714950426131,-901.65734048,0.00019516,2]
[326467439,1714950436343,-98.34265952,0.00019516,2]